bitfinex/quotes_BTCUSD_20220211
["timestamp","ask_amount","ask_price","bid_price","bid_amount"]
[1644606312286,0.25726746,42390.0,42383.0,0.00030003]
[1644606312287,0.30726746,42390.0,42383.0,0.00030003]
[1644606312686,0.30726746,42390.0,42368.0,0.285968]
[1644606312687,0.46940451,42378.0,42368.0,0.235968]
[1644606312989,0.07379545,42375.0,42370.0,0.1381]
[1644606313386,0.12379545,42375.0,42370.0,0.1381]
[1644606313588,0.05,42375.0,42371.0,0.059011]
[1644606313786,0.46940451,42378.0,42371.0,0.059011]
[1644606313787,0.51940451,42378.0,42371.0,0.059011]
[1644606313985,0.51940451,42378.0,42372.0,0.1381]
[1644606314188,0.51940451,42378.0,42374.0,0.1381]
[1644606314386,0.51940451,42378.0,42374.0,0.256124]
[1644606314587,0.51940451,42378.0,42375.0,0.1381]
[1644606314785,0.3884098,42387.0,42375.0,0.1381]
[1644606314786,0.38238792,42387.0,42375.0,0.1381]
[1644606314987,0.45430451,42388.0,42379.0,0.00030006]
[1644606315188,0.34224377,42386.0,42379.0,0.00030006]
[1644606315387,0.45430451,42388.0,42380.0,0.059001]
[1644606315641,0.31233647,42384.0,42380.0,0.059001]
[1644606315841,0.45430451,42388.0,42379.0,0.00030006]
[1644606315842,0.440999,42380.0,42379.0,0.00030006]
[1644606316246,0.440999,42380.0,42376.0,0.22683506]
[1644606316442,0.440999,42380.0,42378.0,0.059004]
[1644606316641,0.440999,42380.0,42376.0,0.27683506]
[1644606316841,0.440999,42380.0,42376.0,0.22683506]
[1644606317244,0.07765918,42379.0,42376.0,0.08873506]
[1644606317443,0.07765918,42379.0,42374.0,6.359e-05]
[1644606317841,0.29640421,42378.0,42374.0,6.359e-05]
[1644606318041,0.12765918,42379.0,42374.0,6.359e-05]
[1644606318243,0.12765918,42379.0,42373.0,0.00120752]
[1644606318244,0.36553631,42377.0,42373.0,0.00120752]
[1644606318849,0.059035,42376.0,42373.0,7.09e-06]
[1644606319044,0.32939894,42376.0,42373.0,7.09e-06]
[1644606319291,0.32939894,42376.0,42361.0,0.01]
[1644606319292,0.05,42374.0,42361.0,0.01]
[1644606319485,0.57435646,42375.0,42346.0,0.0011]
[1644606319486,1.05,42368.0,42346.0,0.0011]
[1644606319684,0.05,42359.0,42346.0,0.38605646]
[1644606319884,0.1,42366.0,42346.0,0.0011]
[1644606320082,0.40108601,42351.0,42346.0,0.0011]
[1644606320285,0.45108601,42351.0,42346.0,0.0011]
[1644606320584,1.05,42350.0,42328.0,0.1403]
[1644606320786,0.38162402,42349.0,42331.0,0.0042]
[1644606320982,0.059087,42345.0,42331.0,0.0042]
[1644606321183,0.13383362,42344.0,42331.0,0.0042]
[1644606321392,0.13383362,42344.0,42327.0,0.05]
[1644606321393,0.05,42339.0,42327.0,0.05]
[1644606321589,0.07976536,42314.0,42305.0,0.30564566]
[1644606321814,0.07976536,42314.0,42293.0,0.00013387]
[1644606321827,1.43162402,42313.0,42312.0,0.05]
[1644606321982,1.43162402,42313.0,42289.0,0.00077356]
[1644606321983,1.05,42312.0,42306.0,0.00033112]
[1644606322184,0.052272,42308.0,42287.0,2.12594141]
[1644606322482,1.05,42307.0,42294.0,0.05]
[1644606322682,0.35328772,42295.0,42288.0,0.23789437]
[1644606322882,0.05,42295.0,42288.0,0.23789437]
[1644606323147,0.0489,42295.0,42287.0,2.12275629]
[1644606323345,0.37162402,42306.0,42287.0,1.92575629]
[1644606323543,0.37162402,42306.0,42287.0,0.00181488]
[1644606323743,0.218255,42315.0,42287.0,0.00181488]
[1644606323744,0.118255,42315.0,42287.0,0.00181488]
[1644606324047,0.05,42328.0,42287.0,0.00181488]
[1644606324048,0.36817103,42323.0,42300.0,0.21024415]
[1644606324243,0.168235,42323.0,42293.0,0.2]
[1644606324444,0.31303787,42323.0,42301.0,0.35752103]
[1644606324742,0.31303787,42323.0,42302.0,0.38162402]
[1644606324942,0.31303787,42323.0,42301.0,0.00181488]
[1644606325144,0.07051773,42313.0,42302.0,0.24985242]
[1644606325542,0.31303787,42323.0,42302.0,0.05]
[1644606325543,0.36933535,42303.0,42302.0,0.05]
[1644606325741,0.059116,42320.0,42302.0,0.05]
[1644606325742,0.059116,42320.0,42302.0,0.05181488]
[1644606325942,0.059116,42320.0,42302.0,0.00181488]
[1644606326343,0.098516,42320.0,42302.0,0.00181488]
[1644606326543,0.18819363,42310.0,42302.0,0.00181488]
[1644606326807,0.059135,42308.0,42302.0,0.00181488]
[1644606327201,0.37625985,42307.0,42302.0,0.00181488]
[1644606327401,0.177408,42319.0,42302.0,0.00181488]
[1644606327606,0.227408,42319.0,42302.0,0.00181488]
[1644606327803,0.059128,42313.0,42302.0,0.00181488]
[1644606328002,0.216808,42319.0,42302.0,0.00181488]
[1644606328401,0.05,42310.0,42302.0,0.00181488]
[1644606328603,0.83559597,42309.0,42302.0,0.00181488]
[1644606328804,0.62929411,42309.0,42302.0,0.00181488]
[1644606329002,0.52929411,42309.0,42302.0,0.00181488]
[1644606329207,2.97829309,42306.0,42285.0,0.000634]
[1644606329409,0.07315285,42292.0,42289.0,0.00132448]
[1644606329705,0.05,42292.0,42289.0,0.00132448]
[1644606329907,0.05,42292.0,42290.0,0.330561]
[1644606330109,2.97829309,42306.0,42304.0,7.069e-05]
[1644606330303,0.6301,42319.0,42304.0,7.069e-05]
[1644606330304,0.32136433,42307.0,42304.0,7.069e-05]
[1644606331249,0.32136433,42307.0,42281.0,0.07284607]
[1644606331250,1.05,42304.0,42281.0,0.07284607]
[1644606331434,0.05,42295.0,42281.0,0.07284607]
[1644606331633,1.05,42293.0,42282.0,0.03108855]
[1644606331833,0.28581301,42284.0,42282.0,0.03108855]
[1644606332034,0.04208,42284.0,42282.0,0.03108855]
[1644606332232,0.101248,42284.0,42282.0,0.03108855]
[1644606332433,0.059168,42284.0,42282.0,0.03108855]
[1644606332635,0.059168,42284.0,42282.0,0.03098855]
[1644606332833,0.26258635,42283.0,42282.0,0.03098855]
[1644606333234,0.26258635,42283.0,42276.0,0.003]
[1644606333235,1.05,42282.0,42276.0,0.003]
[1644606333437,1.05,42282.0,42279.0,0.0009622]
[1644606333635,0.67982498,42283.0,42279.0,0.0009622]
[1644606333835,0.31258635,42283.0,42279.0,0.0009622]
[1644606334281,0.41258635,42283.0,42279.0,0.0009622]
[1644606334484,0.41258635,42283.0,42248.0,1.63043122]
[1644606334485,1.0,42251.0,42248.0,1.63043122]
[1644606334686,0.07361,42251.0,42248.0,1.72483122]
[1644606334881,0.07361,42251.0,42249.0,0.36583491]
[1644606334882,0.10953,42251.0,42249.0,0.36583491]
[1644606335081,0.10953,42251.0,42248.0,1.72483122]
[1644606335283,0.10953,42251.0,42249.0,0.07914]
[1644606335585,0.118398,42265.0,42249.0,0.32631408]
[1644606335783,0.118398,42265.0,42249.0,0.31631408]
[1644606335784,0.059198,42261.0,42249.0,0.31631408]
[1644606335983,0.059198,42261.0,42249.0,0.30631408]
[1644606336183,0.059198,42261.0,42249.0,0.24717408]
[1644606336383,0.059198,42261.0,42259.0,0.39681877]
[1644606336587,0.059198,42261.0,42256.0,0.18657775]
[1644606336588,0.5370912,42258.0,42256.0,0.18657775]
[1644606336884,0.5370912,42258.0,42256.0,0.00096992]
[1644606337087,0.33435656,42258.0,42256.0,0.00096992]
[1644606337288,0.30333787,42257.0,42256.0,0.00096992]
[1644606337487,0.33435656,42258.0,42256.0,0.00096992]
[1644606337884,0.33216656,42258.0,42257.0,0.34529819]
[1644606338735,0.33216656,42258.0,42257.0,0.39529819]
[1644606338937,0.33216656,42258.0,42257.0,0.05096992]
[1644606339334,0.33216656,42258.0,42257.0,0.00096992]
[1644606339536,0.38216656,42258.0,42257.0,0.00096992]
[1644606339736,0.05,42258.0,42257.0,0.00096992]
[1644606340138,0.05,42258.0,42257.0,0.31582879]
[1644606340336,0.0142,42266.0,42257.0,0.36582879]
[1644606340636,0.0142,42266.0,42258.0,1.05]
[1644606340844,0.0142,42266.0,42258.0,0.00096992]
[1644606341037,0.0142,42266.0,42259.0,0.00029336]
[1644606341237,8.99873672,42258.0,42257.0,0.31485887]
[1644606341437,8.99873672,42258.0,42257.0,0.64541987]
[1644606342085,9.04873672,42258.0,42257.0,0.64541987]
[1644606342688,9.04873672,42258.0,42255.0,0.1381]
[1644606342888,9.04873672,42258.0,42253.0,0.42]
[1644606343887,2.50700315,42255.0,42253.0,0.42]
[1644606344091,2.50700315,42255.0,42219.0,0.07607361]
[1644606344092,1.45630186,42254.0,42219.0,0.07607361]
[1644606344290,1.45630186,42254.0,42211.0,0.0031]
[1644606344291,0.2,42239.0,42211.0,0.0031]
[1644606344491,0.77827173,42238.0,42236.0,0.00098888]
[1644606344691,0.381842,42237.0,42236.0,0.00098888]
[1644606344892,0.33185,42236.0,42223.0,0.04098888]
[1644606345090,0.33185,42236.0,42217.0,0.09447]
[1644606345091,0.33185,42224.0,42212.0,0.2408095]
[1644606345288,0.2,42223.0,42211.0,0.0031]
[1644606345543,0.2,42223.0,42209.0,0.04357455]
[1644606345544,0.2,42215.0,42209.0,0.04357455]
[1644606345738,1.05,42221.0,42204.0,0.05012305]
[1644606345739,1.05,42213.0,42204.0,0.05012305]
[1644606345939,0.331888,42208.0,42204.0,0.05012305]
[1644606346138,0.331888,42207.0,42206.0,0.18882398]
[1644606346339,2.4e-05,42207.0,42206.0,0.00024994]
[1644606346546,2.4e-05,42207.0,42193.0,0.05]
[1644606346547,1.05024,42206.0,42193.0,0.05]
[1644606346745,0.35630186,42223.0,42187.0,0.00110688]
[1644606346746,0.025,42200.0,42187.0,0.00110688]
[1644606347140,0.025,42200.0,42178.0,0.35630186]
[1644606347141,0.331957,42187.0,42178.0,0.35630186]
[1644606347340,0.0239,42200.0,42177.0,0.36886505]
[1644606347539,0.0239,42200.0,42178.0,0.33630186]
[1644606347540,0.331957,42199.0,42178.0,0.33630186]
[1644606347745,0.330777,42197.0,42179.0,0.108562]
[1644606347941,0.05,42197.0,42179.0,0.108562]
[1644606348143,0.331999,42195.0,42186.0,0.29388014]
[1644606348342,0.01141915,42197.0,42185.0,0.22467757]
[1644606348343,0.19733,42190.0,42185.0,0.22467757]
[1644606348641,0.19733,42190.0,42177.0,0.05]
[1644606348642,0.34709779,42184.0,42177.0,0.05]
[1644606348841,0.34709779,42184.0,42169.0,0.118587]
[1644606349041,0.331999,42183.0,42178.0,0.0011238]
[1644606349295,0.329059,42183.0,42178.0,0.0011238]
[1644606349496,0.01141915,42184.0,42179.0,0.24686844]
[1644606349695,0.332026,42183.0,42179.0,0.24686844]
[1644606349896,0.01141915,42187.0,42179.0,0.24686844]
[1644606350099,4.20043639,42209.0,42180.0,1.73832686]
[1644606350402,4.20043639,42209.0,42181.0,0.32707268]
[1644606350403,0.02362,42200.0,42181.0,0.32707268]
[1644606350598,0.332025,42199.0,42193.0,0.22201866]
[1644606350796,0.332025,42199.0,42188.0,0.02067166]
[1644606350996,0.332025,42194.0,42188.0,0.01567166]
[1644606351198,0.19733,42190.0,42188.0,0.01567166]
[1644606351399,0.529355,42190.0,42188.0,0.01567166]
[1644606351605,0.2812,42215.0,42179.0,0.00698142]
[1644606351606,0.03355033,42184.0,42179.0,0.00698142]
[1644606351802,0.03355033,42184.0,42168.0,0.0011]
[1644606351803,0.15,42170.0,42168.0,0.0011]
[1644606352002,0.237183,42170.0,42169.0,0.05]
[1644606352196,0.237183,42170.0,42168.0,0.0011]
[1644606352498,0.118615,42178.0,42173.0,0.59307496]
[1644606352697,0.087183,42177.0,42173.0,0.23467822]
[1644606352902,0.086083,42177.0,42175.0,0.05]
[1644606353141,1.78609905,42179.0,42175.0,0.05]
[1644606353342,1.78609905,42179.0,42175.0,0.09483]
[1644606353539,1.43026712,42179.0,42176.0,0.33208]
[1644606353740,0.094882,42178.0,42175.0,0.09483]
[1644606353939,1.43026712,42179.0,42176.0,1.1861614]
[1644606353940,1.22861163,42179.0,42176.0,1.1861614]
[1644606354140,1.37277234,42179.0,42175.0,0.46587076]
[1644606354339,1.37277234,42179.0,42175.0,0.09483]
[1644606354641,1.37277234,42179.0,42176.0,0.59307693]
[1644606354642,0.059306,42178.0,42176.0,0.59307693]
[1644606355041,0.99877901,42179.0,42176.0,0.58807693]
[1644606355242,0.5,42178.0,42176.0,0.58807693]
[1644606355445,0.76154335,42179.0,42175.0,1.28136174]
[1644606355640,0.06250699,42180.0,42176.0,0.59308902]
[1644606355842,0.06250699,42180.0,42175.0,1.27636174]
[1644606355843,0.3481433,42178.0,42175.0,1.27636174]
[1644606356039,0.3481433,42178.0,42175.0,0.85177675]
[1644606356241,0.24047699,42180.0,42175.0,0.49586575]
[1644606356242,0.2327111,42180.0,42175.0,0.49586575]
[1644606356440,0.11475387,42180.0,42175.0,0.49060043]
[1644606356641,0.10536637,42183.0,42175.0,0.49060043]
[1644606356888,0.31627257,42179.0,42175.0,0.49060043]
[1644606357089,0.30739479,42186.0,42176.0,0.58020602]
[1644606357288,0.677956,42187.0,42176.0,0.22430002]
[1644606357289,0.05,42182.0,42176.0,0.22430002]
[1644606357488,0.17797,42180.0,42176.0,0.22430002]
[1644606357688,0.14411628,42181.0,42176.0,0.22430002]
[1644606357889,0.118624,42180.0,42176.0,0.22430002]
[1644606358290,0.07240794,42181.0,42177.0,0.23727272]
[1644606358491,1.40630186,42180.0,42156.0,0.05]
[1644606358694,1.40630186,42180.0,42146.0,1.05]
[1644606358695,0.059322,42167.0,42146.0,1.05]
[1644606358891,0.0394,42166.0,42145.0,0.25165204]
[1644606359089,0.0394,42166.0,42147.0,0.0061025]
[1644606359090,0.05,42162.0,42147.0,0.0061025]
[1644606359290,0.05,42162.0,42153.0,0.23380208]
[1644606359691,0.05,42162.0,42147.0,0.0061025]
[1644606359692,0.045,42162.0,42147.0,0.0061025]
[1644606359891,0.059338,42159.0,42147.0,0.0061025]
[1644606360297,0.059336,42161.0,42152.0,0.00025219]
[1644606360755,0.059342,42159.0,42152.0,0.00025219]
[1644606361352,0.059342,42159.0,42146.0,0.01091196]
[1644606361354,0.34148954,42156.0,42147.0,0.36620758]
[1644606361553,0.06618033,42154.0,42153.0,0.00025218]
[1644606361752,0.06618033,42154.0,42151.0,0.00630484]
[1644606361753,1.05,42153.0,42151.0,0.00630484]
[1644606361952,0.059349,42155.0,42151.0,0.00630484]
[1644606361953,0.059354,42152.0,42151.0,0.00630484]
[1644606362154,0.054354,42152.0,42151.0,0.00630484]
[1644606362553,0.054354,42152.0,42145.0,0.15165204]
[1644606362761,0.05,42150.0,42145.0,0.15165204]
[1644606362955,0.05,42150.0,42146.0,0.00611969]
[1644606362956,0.118722,42149.0,42146.0,0.00611969]
[1644606363155,0.118722,42149.0,42146.0,0.00111969]
[1644606363357,0.178083,42158.0,42147.0,0.35663824]
[1644606363557,0.05,42155.0,42150.0,0.17804317]
[1644606363955,0.00096,42152.0,42146.0,0.00111969]
[1644606364156,0.34014395,42148.0,42146.0,0.00111969]
[1644606364386,0.118722,42151.0,42145.0,0.15663504]
[1644606364586,0.118722,42151.0,42141.0,0.01140664]
[1644606364587,1.40630186,42150.0,42141.0,0.00092992]
[1644606364785,0.41566286,42149.0,42141.0,0.000808]
[1644606364986,0.41566286,42149.0,42140.0,0.25724818]
[1644606364987,0.05,42146.0,42140.0,0.06151802]
[1644606365386,0.059367,42144.0,42141.0,0.00629057]
[1644606365591,0.058857,42144.0,42141.0,0.00189057]
[1644606365785,0.06699787,42140.0,42138.0,0.0044]
[1644606365988,1.168755,42142.0,42127.0,0.00090072]
[1644606366386,0.30362931,42133.0,42127.0,0.00090072]
[1644606366587,1.40630186,42142.0,42127.0,0.00090072]
[1644606366588,0.92737851,42142.0,42127.0,0.00090072]
[1644606366788,0.92737851,42142.0,42126.0,0.23636365]
[1644606366789,0.92737851,42142.0,42126.0,0.21226437]
[1644606366790,0.059375,42133.0,42126.0,0.21226437]
[1644606367102,0.059375,42133.0,42126.0,0.10726437]
[1644606367288,0.059379,42131.0,42126.0,0.10726437]
[1644606367489,1.05,42128.0,42125.0,1.111e-05]
[1644606367887,0.019397,42127.0,42121.0,0.01221048]
[1644606368155,0.059385,42129.0,42121.0,0.01221048]
[1644606368156,0.147576,42129.0,42121.0,0.01221048]
[1644606368357,0.356391,42128.0,42121.0,0.01221048]
[1644606368756,0.356391,42128.0,42120.0,0.0001]
[1644606368959,0.356391,42128.0,42120.0,0.0801]
[1644606368961,0.178186,42128.0,42120.0,0.0801]
[1644606369160,0.07844971,42125.0,42120.0,0.0801]
[1644606369361,0.059393,42124.0,42120.0,0.0801]
[1644606369557,0.058633,42124.0,42120.0,0.0801]
[1644606369758,0.058633,42124.0,42117.0,0.001818]
[1644606369957,1.148033,42124.0,42120.0,0.00022343]
[1644606370157,0.098033,42124.0,42120.0,0.00022343]
[1644606370360,0.097753,42124.0,42120.0,0.00022343]
[1644606370558,0.097753,42124.0,42117.0,0.001818]
[1644606370559,0.118805,42122.0,42117.0,0.001818]
[1644606370860,0.118802,42121.0,42117.0,0.001818]
[1644606371459,0.118802,42121.0,42120.0,0.46428562]
[1644606371660,0.178207,42121.0,42120.0,0.36778562]
[1644606371883,0.178207,42121.0,42117.0,0.001818]
[1644606372286,0.27013452,42118.0,42117.0,0.001818]
[1644606372483,0.119206,42121.0,42117.0,0.001818]
[1644606372883,1.05,42120.0,42111.0,0.01022086]
[1644606373085,0.11882,42116.0,42111.0,0.01022086]
[1644606373284,1.05,42115.0,42105.0,0.3]
[1644606373486,1.05,42115.0,42087.0,2.0889773]
[1644606373487,1.35,42114.0,42087.0,2.0889773]
[1644606373688,1.35,42114.0,42086.0,0.05101884]
[1644606373689,0.07180308,42094.0,42086.0,0.00101884]
[1644606373887,0.07180308,42094.0,42081.0,0.32356024]
[1644606373888,1.05,42099.0,42087.0,0.28945896]
[1644606374085,1.16832,42113.0,42077.0,6.108e-05]
[1644606374287,1.05,42105.0,42071.0,0.00106]
[1644606374485,0.95,42104.0,42088.0,0.11884997]
[1644606374688,0.2,42103.0,42080.0,0.017823]
[1644606374987,0.2,42103.0,42072.0,0.47583964]
[1644606374988,1.05,42102.0,42092.0,0.30249628]
[1644606375283,1.05,42102.0,42087.0,0.00402547]
[1644606375284,0.85,42101.0,42087.0,0.19222529]
[1644606375538,0.2,42100.0,42087.0,0.49222529]
[1644606375741,0.55,42101.0,42087.0,0.41018498]
[1644606375940,0.06832075,42099.0,42087.0,0.41018498]
[1644606376244,0.245,42111.0,42098.0,0.35218253]
[1644606376450,0.059412,42110.0,42098.0,0.35218253]
[1644606376641,0.059412,42110.0,42099.0,0.20388915]
[1644606376849,0.7738,42126.0,42093.0,0.0394]
[1644606376850,0.3,42118.0,42093.0,0.0394]
[1644606377142,0.3,42119.0,42094.0,0.0394]
[1644606377343,0.3,42123.0,42095.0,0.38602139]
[1644606377547,0.3,42128.0,42105.0,0.005]
[1644610281555,0.30739339,42456.0,42439.0,0.5646]
[1644610281745,0.30739339,42456.0,42451.0,0.30071708]
[1644610281746,0.30703202,42456.0,42451.0,0.30071708]
[1644610282148,0.00144655,42452.0,42451.0,0.35071708]
[1644610282847,0.00144655,42452.0,42447.0,0.05]
[1644610283046,0.30070106,42453.0,42447.0,0.05]
[1644610283246,0.05929669,42454.0,42441.0,0.05]
[1644610283902,0.05929669,42454.0,42450.0,0.3911258]
[1644610284107,0.11931455,42460.0,42450.0,0.4411258]
[1644610284108,0.08308791,42457.0,42450.0,0.4411258]
[1644610284505,0.00144655,42456.0,42450.0,0.4411258]
[1644610284809,0.00144655,42456.0,42449.0,0.05]
[1644610285004,0.00144655,42456.0,42443.0,0.0432]
[1644610285405,0.14201809,42457.0,42443.0,0.0432]
[1644610285604,0.26201115,42456.0,42447.0,0.33032517]
[1644610285805,0.00048585,42452.0,42447.0,0.33032517]
[1644610286008,0.09387585,42452.0,42445.0,0.05]
[1644610286210,0.00048585,42452.0,42445.0,0.05]
[1644610286408,0.00048585,42452.0,42443.0,0.1932]
[1644610286409,0.00048585,42452.0,42450.0,0.05]
[1644610286611,0.00180309,42455.0,42450.0,0.05]
[1644610286807,0.00180309,42455.0,42454.0,0.40338081]
[1644610287009,0.00180309,42455.0,42454.0,0.72420895]
[1644610287208,0.00180309,42455.0,42454.0,0.45338081]
[1644610287449,0.00180309,42455.0,42454.0,0.77730281]
[1644610287649,0.00180309,42455.0,42454.0,0.45338081]
[1644610287850,0.058909,42471.0,42454.0,0.45338081]
[1644610287851,0.176725,42487.0,42468.0,0.15]
[1644610288054,0.01,42489.0,42469.0,0.3]
[1644610288248,0.01,42489.0,42469.0,0.35]
[1644610288449,0.19894,42489.0,42469.0,0.05]
[1644610288651,0.19894,42489.0,42463.0,0.39413689]
[1644610288652,0.05,42479.0,42463.0,0.39413689]
[1644610288849,0.11782,42476.0,42466.0,0.23351459]
[1644610289053,0.3,42486.0,42468.0,0.37460656]
[1644610289054,0.3,42479.0,42468.0,0.37460656]
[1644610289253,0.058904,42477.0,42468.0,0.37460656]
[1644610289448,0.00036137,42473.0,42458.0,0.5761]
[1644610290049,0.00036137,42473.0,42461.0,0.23977138]
[1644610290248,0.058904,42477.0,42461.0,0.28977138]
[1644610290450,0.058904,42477.0,42466.0,0.25898845]
[1644610290451,0.00048747,42468.0,42466.0,0.25898845]
[1644610290650,0.00048747,42468.0,42465.0,0.3767251]
[1644610290849,0.00048747,42468.0,42461.0,0.28977138]
[1644610290850,0.00048747,42468.0,42466.0,0.05]
[1644610291302,0.00048747,42468.0,42459.0,0.00013788]
[1644610291499,0.058909,42472.0,42456.0,0.00013788]
[1644610291706,0.058909,42472.0,42441.0,0.117813]
[1644610291707,1.10048747,42469.0,42445.0,0.5554]
[1644610291905,0.34898483,42468.0,42452.0,0.00013789]
[1644610292099,0.37234483,42468.0,42449.0,0.21614409]
[1644610292300,0.07863572,42465.0,42450.0,0.00023789]
[1644610292498,0.0432,42464.0,42450.0,0.0001]
[1644610292697,0.0432,42464.0,42450.0,0.00023789]
[1644610292698,0.0432,42463.0,42450.0,0.00023789]
[1644610292898,0.0432,42463.0,42453.0,0.34686852]
[1644610293101,0.0432,42463.0,42450.0,0.00023789]
[1644610293298,0.29733317,42460.0,42450.0,0.0001]
[1644610293502,0.0432,42459.0,42450.0,0.00023789]
[1644610293702,0.058927,42460.0,42450.0,0.0001]
[1644610293903,0.05892414,42462.0,42450.0,0.0001]
[1644610293904,0.85,42471.0,42450.0,0.0001]
[1644610294101,0.05,42474.0,42452.0,0.00012766]
[1644610294301,0.11779604,42484.0,42453.0,0.0432]
[1644610294302,0.05578483,42484.0,42453.0,0.0432]
[1644610294505,0.05578483,42484.0,42476.0,0.28371623]
[1644610294506,0.34694359,42481.0,42476.0,0.28371623]
[1644610294704,0.34694359,42481.0,42468.0,0.25376931]
[1644610294957,0.01,42489.0,42468.0,0.30376931]
[1644610295154,0.05,42485.0,42469.0,0.5554]
[1644610295351,0.05,42476.0,42469.0,0.5554]
[1644610295553,0.05,42476.0,42468.0,0.30376931]
[1644610295554,0.177803,42489.0,42468.0,0.05]
[1644610295752,0.08437679,42469.0,42455.0,0.4]
[1644610295953,0.08437679,42469.0,42463.0,0.39952773]
[1644610295954,6.605e-05,42468.0,42463.0,0.39952773]
[1644610296255,6.605e-05,42468.0,42463.0,0.49952773]
[1644610296453,6.605e-05,42468.0,42464.0,0.22143792]
[1644610296653,0.00055394,42468.0,42464.0,0.22143792]
[1644610297057,0.00055394,42468.0,42465.0,0.29690311]
[1644610297452,0.00055394,42468.0,42463.0,0.44952773]
[1644610297453,0.00055394,42468.0,42463.0,0.05]
[1644610297651,6.605e-05,42468.0,42463.0,0.05]
[1644610297851,6.605e-05,42468.0,42458.0,0.00128731]
[1644610298054,0.07091214,42459.0,42458.0,0.00128731]
[1644610298259,0.12091214,42459.0,42458.0,0.00128731]
[1644610299112,0.00201738,42468.0,42458.0,0.00128731]
[1644610299309,0.00201738,42468.0,42464.0,0.25681519]
[1644610299507,0.00201738,42468.0,42458.0,0.11907831]
[1644610299905,6.605e-05,42468.0,42458.0,0.11907831]
[1644610300106,6.605e-05,42468.0,42459.0,0.7072227]
[1644610300308,6.605e-05,42468.0,42467.0,0.25866701]
[1644610300609,6.605e-05,42468.0,42467.0,0.30866701]
[1644610300813,0.01,42489.0,42467.0,0.40866701]
[1644610301009,0.05,42487.0,42467.0,0.70866701]
[1644610301207,0.05,42487.0,42467.0,0.75866701]
[1644610301410,0.05,42487.0,42486.0,0.3157219]
[1644610301708,0.01,42489.0,42479.0,0.26588714]
[1644610302109,0.07569104,42487.0,42479.0,0.05]
[1644610302360,0.08301999,42480.0,42473.0,0.05]
[1644610302549,0.08301999,42480.0,42467.0,0.42006271]
[1644610302550,0.08301999,42480.0,42467.0,0.47006271]
[1644610302755,0.07943431,42471.0,42467.0,0.42006271]
[1644610302952,0.0432,42470.0,42467.0,0.42006271]
[1644610303547,0.058912,42469.0,42467.0,0.42006271]
[1644610303746,0.36014435,42468.0,42467.0,0.42006271]
[1644610303950,0.058912,42469.0,42467.0,0.42006271]
[1644610304152,0.1183143,42471.0,42467.0,0.42006271]
[1644610304153,0.0004883,42471.0,42467.0,0.42006271]
[1644610304750,0.058884,42487.0,42467.0,0.42006271]
[1644610304954,0.058884,42487.0,42485.0,0.33111161]
[1644610305157,0.01,42489.0,42485.0,0.33111161]
[1644610305450,0.00224742,42487.0,42485.0,0.38111161]
[1644610305848,0.00230997,42487.0,42485.0,0.38111161]
[1644610306299,0.00230997,42487.0,42485.0,0.43997661]
[1644610306499,0.00230997,42487.0,42485.0,0.38111161]
[1644610307399,0.00230997,42487.0,42485.0,0.70132391]
[1644610308802,0.00230997,42487.0,42485.0,0.38111161]
[1644610309501,0.00230997,42487.0,42485.0,0.05]
[1644610309710,0.00230997,42487.0,42483.0,0.5361]
[1644610309711,0.07274117,42486.0,42483.0,0.5861]
[1644610309952,0.07274117,42486.0,42483.0,0.05]
[1644610309953,0.31752873,42485.0,42483.0,0.05]
[1644610310153,0.068616,42485.0,42483.0,0.05]
[1644610310352,0.068616,42485.0,42481.0,0.00109711]
[1644610310353,0.0432,42485.0,42481.0,6.424e-05]
[1644610310550,0.0432,42485.0,42479.0,0.36874725]
[1644610310949,0.04368993,42485.0,42474.0,0.53899727]
[1644610311355,0.00048993,42485.0,42474.0,0.53899727]
[1644610311950,0.00203196,42486.0,42475.0,0.35487044]
[1644610312149,0.00048994,42484.0,42475.0,0.35487044]
[1644610312752,0.00048994,42484.0,42475.0,0.66885983]
[1644610313050,0.00048994,42484.0,42478.0,0.47]
[1644610313251,0.00203196,42486.0,42478.0,0.47]
[1644610313449,0.00048994,42483.0,42478.0,0.47]
[1644610314294,0.00203196,42486.0,42478.0,0.47]
[1644610314493,0.00036023,42483.0,42478.0,0.47]
[1644610315298,0.05924823,42483.0,42480.0,0.00100943]
[1644610315492,0.05924823,42483.0,42480.0,0.00107373]
[1644610315493,0.058888,42483.0,42480.0,0.00107373]
[1644610315695,0.00036023,42483.0,42480.0,0.00107373]
[1644610315896,0.02577623,42483.0,42480.0,0.00107373]
[1644610316094,0.00036023,42483.0,42480.0,0.00107373]
[1644610316496,0.058887,42482.0,42480.0,0.00107373]
[1644610316795,0.00196319,42484.0,42480.0,0.33623037]
[1644610316994,0.0024528,42484.0,42480.0,0.33623037]
[1644610317355,0.025416,42483.0,42480.0,0.05097373]
[1644610317550,0.084304,42483.0,42480.0,0.05097373]
[1644610317749,0.11534831,42482.0,42480.0,0.00107373]
[1644610318151,0.33097462,42481.0,42480.0,0.00107373]
[1644610318353,0.37417462,42481.0,42480.0,0.00107373]
[1644610318553,0.67857592,42481.0,42480.0,0.00107373]
[1644610318953,0.37417462,42481.0,42480.0,0.00107373]
[1644610319163,0.117802,42479.0,42477.0,0.42]
[1644610319357,0.058914,42471.0,42467.0,0.84]
[1644610319554,0.10211492,42470.0,42467.0,0.42]
[1644610320154,0.16102992,42470.0,42467.0,0.42]
[1644610320561,0.10211492,42470.0,42468.0,0.33142478]
[1644610320754,0.10211492,42470.0,42467.0,0.42]
[1644610321203,0.16101792,42470.0,42467.0,0.42]
[1644610321602,0.16101792,42470.0,42467.0,0.47]
[1644610321808,0.102103,42470.0,42467.0,0.47]
[1644610322604,0.08355599,42469.0,42467.0,0.47]
[1644610322805,0.0432,42468.0,42467.0,0.47]
[1644610325651,0.0432659,42468.0,42467.0,0.47]
[1644610325848,0.0432659,42468.0,42467.0,0.7946073]
[1644610326449,0.00401337,42469.0,42468.0,0.32409756]
[1644610326947,0.00401337,42469.0,42468.0,0.0865318]
[1644610327947,0.00401337,42469.0,42468.0,0.09065372]
[1644610329405,0.00401337,42469.0,42468.0,0.41432544]
[1644610330001,0.00401337,42469.0,42468.0,0.41418744]
[1644610330203,0.058892,42479.0,42468.0,0.41418744]
[1644610330404,0.00046069,42471.0,42469.0,1.1]